[Event "European Womens-ch 2025"]
[Site "Rhodes"]
[Date "2025.04.03"]
[Round "4.66"]
[White "Recica, Jona"]
[Black "Lamprianou, Marianna"]
[Result "1-0"]
[Annotator "NA COMBH"]
[ECO "C44"]
[WhiteElo "1716"]
[BlackElo "1498"]
[PlyCount "65"]
[EventDate "2025.03.29"]
[EventType "swiss"]
[EventCountry "GRE"]
[SourceTitle "playchess.com"]
[Source "ChessBase"]
[SourceQuality "1"]
[TimeControl "40/5400+30:1800+30"]

1. e4 {[%emt 0:00:03]} e5 {[%emt 0:00:07]} 2. Nf3 {[%emt 0:00:05]} Nc6 {[%emt 0:00:07]} 3. d4 {[%emt 0:00:35]} exd4 {[%emt 0:00:16]} 4. Bc4 {[%emt 0:00:20]} Bb4+ {[%emt 0:00:35]} 5. c3 {[%emt 0:00:24]} dxc3 {[%emt 0:02:20]} 6. bxc3 {[%emt 0:00:07]} Ba5 {[%emt 0:08:35]} 7. O-O {[%emt 0:01:07]} Nge7 {[%emt 0:01:05]} 8. Ng5 {[%emt 0:01:56]} Ne5 {[%emt 0:02:54]} 9. Nxf7 {[%emt 0:03:28]} Nxf7 {[%emt 0:00:22]} 10. Bxf7+ {[%emt 0:00:06]} Kxf7 {[%emt 0:00:33]} 11. Qh5+ {[%emt 0:00:07]} g6 {[%emt 0:04:28]} 12. Qxa5 {[%emt 0:01:45]} b6 {[%emt 0:01:49]} 13. Qb5 {[%emt 0:02:12]} c6 {[%emt 0:01:19]} 14. Qd3 {[%emt 0:00:19]} a5 {[%emt 0:01:59]} 15. Rd1 {[%emt 0:06:55]} h5 {[%emt 0:06:07]} 16. Bg5 {[%emt 0:03:41]} Qe8 {[%emt 0:04:37]} 17. Qf3+ {[%emt 0:03:24]} Kg8 {[%emt 0:03:49]} 18. Rd6 {[%emt 0:03:10]} Rh7 {[%emt 0:03:04]} 19. Nd2 {[%emt 0:01:22]} Rf7 {[%emt 0:02:11]} 20. Qg3 {[%emt 0:03:56]} Kh7 {[%emt 0:05:25]} 21. Nf3 {[%emt 0:01:49]} Ng8 {[%emt 0:04:28]} 22. Be3 {[%emt 0:01:18]} Rf6 {[%emt 0:45:20]} 23. Ng5+ {[%emt 0:02:23]} Kh6 {[%emt 0:00:00]} 24. Rad1 {[%emt 0:05:20]} Rxd6 {[%emt 0:00:00]} 25. Rxd6 {[%emt 0:00:50]} Ne7 {[%emt 0:00:00]} 26. Nf3+ {[%emt 0:02:13]} Kh7 {[%emt 0:00:00]} 27. Qf4 {[%emt 0:00:49]} Kg8 {[%emt 0:00:00]} 28. Ne5 {[%emt 0:03:11]} Qf8 {[%emt 0:00:00]} 29. Qg5 {[%emt 0:02:09]} Qe8 {[%emt 0:00:00]} 30. Nxg6 {[%emt 0:01:14]} Nxg6 {[%emt 0:00:00]} 31. Rxg6+ {[%emt 0:00:12]} Kf8 {[%emt 0:00:00]} 32. Qh6+ {[%emt 0:00:25]} Ke7 {[%emt 0:00:00]} 33. Bg5+ {[%emt 0:00:46]} 1-0

[Event "European Womens-ch 2025"]
[Site "Rhodes"]
[Date "2025.04.03"]
[Round "4.67"]
[White "Saraci, Ndriqona"]
[Black "Revelioti, Eleni Nefeli"]
[Result "1-0"]
[Annotator "NA COMBH"]
[ECO "B52"]
[WhiteElo "1692"]
[BlackElo "1470"]
[PlyCount "79"]
[EventDate "2025.03.29"]
[EventType "swiss"]
[EventCountry "GRE"]
[SourceTitle "playchess.com"]
[Source "ChessBase"]
[SourceQuality "1"]
[TimeControl "40/5400+30:1800+30"]

1. e4 {[%emt 0:00:04]} c5 {[%emt 0:00:11]} 2. Nf3 {[%emt 0:00:19]} d6 {[%emt 0:00:46]} 3. Bb5+ {[%emt 0:00:45]} Bd7 {[%emt 0:00:29]} 4. Bxd7+ {[%emt 0:00:50]} Qxd7 {[%emt 0:00:42]} 5. O-O {[%emt 0:01:18]} Nf6 {[%emt 0:01:20]} 6. Re1 {[%emt 0:01:04]} Nc6 {[%emt 0:01:35]} 7. c3 {[%emt 0:01:14]} g6 {[%emt 0:12:50]} 8. d4 {[%emt 0:03:41]} cxd4 {[%emt 0:01:11]} 9. cxd4 {[%emt 0:00:14]} e6 {[%emt 0:12:51]} 10. Bg5 {[%emt 0:07:23]} Bg7 {[%emt 0:04:49]} 11. Qd2 {[%emt 0:05:30]} O-O {[%emt 0:01:33]} 12. Bh6 {[%emt 0:02:01]} Rfe8 {[%emt 0:01:03]} 13. Bxg7 {[%emt 0:00:31]} Kxg7 {[%emt 0:00:10]} 14. Nc3 {[%emt 0:01:14]} a6 {[%emt 0:09:20]} 15. Na4 {[%emt 0:05:56]} Qd8 {[%emt 0:03:53]} 16. Qf4 {[%emt 0:05:38]} Nh5 {[%emt 0:04:21]} 17. Qe3 {[%emt 0:03:59]} Nf6 {[%emt 0:00:58]} 18. Rac1 {[%emt 0:02:25]} Ng4 {[%emt 0:04:23]} 19. Qb3 {[%emt 0:04:31]} Na5 {[%emt 0:01:41]} 20. Qb4 {[%emt 0:06:54]} Nf6 {[%emt 0:02:51]} 21. Nb6 {[%emt 0:04:26]} Nc6 {[%emt 0:06:55]} 22. Rxc6 {[%emt 0:01:16]} bxc6 {[%emt 0:00:07]} 23. Nxa8 {[%emt 0:00:07]} Qxa8 {[%emt 0:00:11]} 24. Qxd6 {[%emt 0:00:28]} Rd8 {[%emt 0:00:27]} 25. Qc5 {[%emt 0:04:08]} Nd7 {[%emt 0:03:00]} 26. Qe7 {[%emt 0:02:19]} Nb6 {[%emt 0:02:18]} 27. Ne5 {[%emt 0:09:54]} Rf8 {[%emt 0:01:13]} 28. Qc7 {[%emt 0:04:02]} Nc8 {[%emt 0:03:44]} 29. Nxc6 {[%emt 0:01:10]} Re8 {[%emt 0:01:09]} 30. Qe5+ {[%emt 0:01:12]} Kg8 {[%emt 0:00:25]} 31. Qc7 {[%emt 0:01:04]} Kg7 {[%emt 0:01:46]} 32. h3 {[%emt 0:02:27]} Kg8 {[%emt 0:00:12]} 33. Re3 {[%emt 0:00:56]} a5 {[%emt 0:01:11]} 34. Rf3 {[%emt 0:01:06]} Rf8 {[%emt 0:00:20]} 35. d5 {[%emt 0:02:13]} exd5 {[%emt 0:00:38]} 36. exd5 {[%emt 0:00:10]} Qa6 {[%emt 0:00:57]} 37. d6 {[%emt 0:03:37]} Nb6 {[%emt 0:01:03]} 38. d7 {[%emt 0:01:11]} Nd5 {[%emt 0:01:50]} 39. Qd6 {[%emt 0:01:20]} Nb4 {[%emt 0:02:22]} 40. d8=Q {[%emt 0:00:00]} 1-0